fUST/lending_fUST_20250421
["ID","MTS","AMOUNT","RATE_DAILY","PERIOD"]
[358519064,1745229043619,-1206.58,0.00019726,2]
[358519065,1745229043629,-500.0,0.00019726,2]
[358519066,1745229043639,-500.0,0.00019726,2]
[358519067,1745229043650,-500.0,0.00019726,2]
[358519068,1745229043660,-6140.27,0.00019726,2]
[358519069,1745229043671,-500.0,0.00019726,2]
[358519071,1745229043683,-500.0,0.00019726,2]
[358519073,1745229043695,-500.0,0.00019726,2]
[358519075,1745229043706,-500.0,0.00019726,2]
[358519077,1745229043718,-500.0,0.00019726,2]
[358519078,1745229043730,-7197.86,0.00019726,2]
[358519079,1745229043741,-500.0,0.00019726,2]
[358519080,1745229043752,-500.0,0.00019726,2]
[358519081,1745229043763,-500.0,0.00019726,2]
[358519082,1745229043775,-500.0,0.00019726,2]
[358519083,1745229043787,-500.0,0.00019726,2]
[358519084,1745229043798,-101.52510552,0.00019726,2]
[358519085,1745229043813,-1133.65489448,0.00019726,2]
[358519086,1745229043824,-1070.22,0.00019726,2]
[358519087,1745229043835,-2946.16,0.00019726,2]
[358519088,1745229043845,-500.0,0.00019726,2]
[358519089,1745229043855,-500.0,0.00019726,2]
[358519090,1745229043865,-631.87,0.00019726,2]
[358519091,1745229043875,-500.0,0.00019726,2]
[358519092,1745229043886,-500.0,0.00019773,2]
[358519093,1745229043900,-500.0,0.00019773,2]
[358519094,1745229043912,-9204.46531792,0.000199,2]
[358519095,1745229043925,-420.0,0.00019913,2]
[358519096,1745229043936,-500.0,0.00019955,2]
[358519097,1745229043948,-500.0,0.00019955,2]
[358519098,1745229043958,-500.0,0.0002,2]
[358519099,1745229043970,-303.82727247,0.0002,2]
[358519100,1745229043980,-500.0,0.0002,2]
[358519101,1745229043990,-1494.8,0.0002,2]
[358519102,1745229044000,-500.0,0.0002,2]
[358519103,1745229044012,-500.0,0.0002,2]
[358519104,1745229044022,-500.0,0.0002,2]
[358519105,1745229044033,-500.0,0.0002,2]
[358519106,1745229044045,-500.0,0.0002,2]
[358519107,1745229044056,-500.0,0.0002,2]
[358519109,1745229044067,-543.66,0.0002,2]
[358519111,1745229044079,-500.0,0.0002,2]
[358519113,1745229044089,-500.0,0.0002,2]
[358519115,1745229044101,-500.0,0.0002,2]
[358519118,1745229044111,-500.0,0.0002,2]
[358519120,1745229044123,-500.0,0.0002,2]
[358519122,1745229044133,-569.89862508,0.0002,2]
[358519124,1745229044144,-500.0,0.0002,2]
[358519126,1745229044155,-685.03,0.0002,2]
[358519128,1745229044167,-2451.89,0.0002,2]
[358519131,1745229044178,-1056.22,0.0002,2]
[358519133,1745229044188,-1445.44,0.0002,2]
[358519135,1745229044199,-500.0,0.0002,2]
[358519137,1745229044209,-500.0,0.0002,2]
[358519139,1745229044219,-500.0,0.0002,2]
[358519141,1745229044231,-500.0,0.0002,2]
[358519143,1745229044242,-545.59,0.0002,2]
[358519145,1745229044253,-837.36,0.0002,2]
[358519147,1745229044264,-500.0,0.0002,2]
[358519150,1745229044277,-500.0,0.0002,2]
[358519152,1745229044288,-500.0,0.0002,2]
[358519154,1745229044299,-500.0,0.0002,2]
[358519156,1745229044314,-500.0,0.0002,2]
[358519158,1745229044324,-500.0,0.0002,2]
[358519160,1745229044335,-500.0,0.0002,2]
[358519162,1745229044348,-987.22,0.0002,2]
[358519165,1745229044360,-1671.49,0.0002,2]
[358519167,1745229044371,-1206.58,0.0002,2]
[358519169,1745229044382,-500.0,0.0002,2]
[358519171,1745229044393,-500.0,0.0002,2]
[358519173,1745229044404,-500.0,0.0002,2]
[358519175,1745229044415,-6140.27,0.0002,2]
[358519178,1745229044427,-500.0,0.0002,2]
[358519180,1745229044437,-500.0,0.0002,2]
[358519182,1745229044448,-500.0,0.0002,2]
[358519184,1745229044459,-501.55137772,0.0002,2]
[358519186,1745229044470,-500.0,0.0002,2]
[358519188,1745229044482,-7197.86,0.0002,2]
[358519191,1745229044493,-500.0,0.0002,2]
[358519193,1745229044503,-553.54705965,0.0002,2]
[358519195,1745229044514,-500.0,0.0002,2]
[358519197,1745229044525,-500.0,0.0002,2]
[358519199,1745229044536,-500.0,0.0002,2]
[358519202,1745229044547,-1235.18,0.0002,2]
[358519204,1745229044558,-2946.16,0.0002,2]
[358519206,1745229044568,-1070.22,0.0002,2]
[358519208,1745229044580,-500.0,0.0002,2]
[358519210,1745229044591,-500.0,0.0002,2]
[358519212,1745229044602,-631.87,0.0002,2]
[358519214,1745229044613,-500.0,0.0002,2]
[358519216,1745229044623,-420.0,0.0002001,2]
[358519218,1745229044634,-196.81599357,0.00020027,2]
[358519221,1745229044644,-500.0,0.00020059,2]
[358519223,1745229044654,-151.0,0.00020262,2]
[358519225,1745229044665,-500.0,0.00020273,2]
[358519227,1745229044675,-500.0,0.00020273,2]
[358519229,1745229044685,-1494.8,0.00020273,2]
[358519231,1745229044696,-500.0,0.00020273,2]
[358519233,1745229044706,-500.0,0.00020273,2]
[358519236,1745229044717,-500.0,0.00020273,2]
[358519238,1745229044729,-500.0,0.00020273,2]
[358519240,1745229044739,-500.0,0.00020273,2]
[358519242,1745229044749,-500.0,0.00020273,2]
[358519244,1745229044759,-543.66,0.00020273,2]
[358519246,1745229044770,-500.0,0.00020273,2]
[358519248,1745229044780,-500.0,0.00020273,2]
[358519250,1745229044790,-500.0,0.00020273,2]
[358519253,1745229044801,-500.0,0.00020273,2]
[358519255,1745229044812,-500.0,0.00020273,2]
[358519257,1745229044823,-500.0,0.00020273,2]
[358519259,1745229044833,-685.03,0.00020273,2]
[358519261,1745229044844,-2451.89,0.00020273,2]
[358519263,1745229044854,-1056.22,0.00020273,2]
[358519265,1745229044865,-1445.44,0.00020273,2]
[358519268,1745229044876,-500.0,0.00020273,2]
[358519270,1745229044887,-500.0,0.00020273,2]
[358519272,1745229044897,-500.0,0.00020273,2]
[358519274,1745229044908,-500.0,0.00020273,2]
[358519276,1745229044918,-545.59,0.00020273,2]
[358519278,1745229044928,-837.36,0.00020273,2]
[358519280,1745229044939,-500.0,0.00020273,2]
[358519283,1745229044950,-500.0,0.00020273,2]
[358519285,1745229044960,-500.0,0.00020273,2]
[358519287,1745229044970,-500.0,0.00020273,2]
[358519289,1745229044979,-500.0,0.00020273,2]
[358519291,1745229044989,-500.0,0.00020273,2]
[358519293,1745229045000,-500.0,0.00020273,2]
[358519295,1745229045010,-987.22,0.00020273,2]
[358519297,1745229045021,-1671.49,0.00020273,2]
[358519299,1745229045031,-1206.58,0.00020273,2]
[358519301,1745229045041,-500.0,0.00020273,2]
[358519304,1745229045051,-500.0,0.00020273,2]
[358519306,1745229045063,-500.0,0.00020273,2]
[358519308,1745229045073,-6140.27,0.00020273,2]
[358519310,1745229045083,-500.0,0.00020273,2]
[358519312,1745229045093,-500.0,0.00020273,2]
[358519314,1745229045104,-500.0,0.00020273,2]
[358519316,1745229045115,-198.43387457,0.00020273,2]
[358519319,1745229045126,-7197.86,0.00020273,2]
[358519321,1745229045136,-500.0,0.00020273,2]
[358519323,1745229045146,-500.0,0.00020273,2]
[358519325,1745229045156,-500.0,0.00020273,2]
[358519327,1745229045165,-500.0,0.00020273,2]
[358519329,1745229045175,-1235.18,0.00020273,2]
[358519360,1745229045451,-1070.22,0.00020273,2]
[358519362,1745229045460,-2946.16,0.00020273,2]
[358519364,1745229045470,-500.0,0.00020273,2]
[358519366,1745229045480,-500.0,0.00020273,2]
[358519367,1745229045489,-631.87,0.00020273,2]
[358519368,1745229045498,-500.0,0.00020273,2]
[358519369,1745229045507,-500.0,0.00020301,2]
[358519370,1745229045516,-195.96953414,0.00020305,2]
[358519371,1745229045525,-500.0,0.00020547,2]
[358519372,1745229045535,-593.6168818,0.00020547,2]
[358519373,1745229045544,-1494.8,0.00020547,2]
[358519374,1745229045554,-500.0,0.00020547,2]
[358519375,1745229045563,-500.0,0.00020547,2]
[358519376,1745229045572,-500.0,0.00020547,2]
[358519378,1745229045581,-500.0,0.00020547,2]
[358519380,1745229045590,-500.0,0.00020547,2]
[358519382,1745229045600,-500.0,0.00020547,2]
[358519384,1745229045610,-543.66,0.00020547,2]
[358519386,1745229045620,-500.0,0.00020547,2]
[358519388,1745229045629,-500.0,0.00020547,2]
[358519390,1745229045639,-500.0,0.00020547,2]
[358519392,1745229045648,-500.0,0.00020547,2]
[358519394,1745229045658,-500.0,0.00020547,2]
[358519397,1745229045668,-500.0,0.00020547,2]
[358519399,1745229045677,-685.03,0.00020547,2]
[358519401,1745229045687,-2451.89,0.00020547,2]
[358519403,1745229045697,-1056.22,0.00020547,2]
[358519405,1745229045706,-1445.44,0.00020547,2]
[358519407,1745229045715,-500.0,0.00020547,2]
[358519409,1745229045725,-500.0,0.00020547,2]
[358519411,1745229045734,-500.0,0.00020547,2]
[358519413,1745229045745,-500.0,0.00020547,2]
[358519415,1745229045754,-545.59,0.00020547,2]
[358519417,1745229045763,-837.36,0.00020547,2]
[358519419,1745229045772,-500.0,0.00020547,2]
[358519421,1745229045782,-307.39656512,0.00020547,2]
[358519423,1745229045791,-500.0,0.00020547,2]
[358519425,1745229045801,-500.0,0.00020547,2]
[358519427,1745229045810,-500.0,0.00020547,2]
[358519429,1745229045819,-500.0,0.00020547,2]
[358519432,1745229045829,-500.0,0.00020547,2]
[358519434,1745229045838,-987.22,0.00020547,2]
[358519437,1745229045847,-1671.49,0.00020547,2]
[358519439,1745229045856,-1206.58,0.00020547,2]
[358519441,1745229045865,-500.0,0.00020547,2]
[358519443,1745229045875,-500.0,0.00020547,2]
[358519446,1745229045884,-500.0,0.00020547,2]
[358519449,1745229045893,-6140.27,0.00020547,2]
[358519451,1745229045903,-500.0,0.00020547,2]
[358519454,1745229045912,-500.0,0.00020547,2]
[358519457,1745229045922,-500.0,0.00020547,2]
[358519460,1745229045932,-7197.86,0.00020547,2]
[358519464,1745229045942,-500.0,0.00020547,2]
[358519467,1745229045952,-500.0,0.00020547,2]
[358519469,1745229045961,-176.13417078,0.00020547,2]
[358519471,1745229045971,-500.0,0.00020547,2]
[358519473,1745229045981,-1235.18,0.00020547,2]
[358519475,1745229045990,-1070.22,0.00020547,2]
[358519477,1745229046000,-2946.16,0.00020547,2]
[358519479,1745229046010,-500.0,0.00020547,2]
[358519481,1745229046020,-500.0,0.00020547,2]
[358519483,1745229046029,-631.87,0.00020547,2]
[358519485,1745229046038,-500.0,0.00020547,2]
[358519487,1745229046048,-500.0,0.00020552,2]
[358519489,1745229046058,-500.0,0.00020552,2]
[358519491,1745229046067,-500.0,0.00020552,2]
[358519494,1745229046076,-500.0,0.00020552,2]
[358519496,1745229046086,-500.0,0.00020552,2]
[358519497,1745229046096,-500.0,0.00020552,2]
[358519499,1745229046105,-500.0,0.00020552,2]
[358519501,1745229046115,-500.0,0.00020552,2]
[358519503,1745229046124,-500.0,0.00020552,2]
[358519506,1745229046134,-500.0,0.00020552,2]
[358519507,1745229046144,-500.0,0.00020552,2]
[358519510,1745229046155,-500.0,0.00020552,2]
[358519512,1745229046166,-500.0,0.00020665,2]
[358519514,1745229046176,-500.0,0.00020715,2]
[358519516,1745229046186,-9204.46531791,0.00020797,3]
[358519518,1745229046195,-151.0,0.0002081,2]
[358519520,1745229046205,-500.0,0.00020821,2]
[358519522,1745229046214,-1494.8,0.00020821,2]
[358519524,1745229046223,-500.0,0.00020821,2]
[358519526,1745229046232,-500.0,0.00020821,2]
[358519528,1745229046241,-500.0,0.00020821,2]
[358519530,1745229046251,-500.0,0.00020821,2]
[358519532,1745229046260,-500.0,0.00020821,2]
[358519534,1745229046270,-500.0,0.00020821,2]
[358519536,1745229046279,-543.66,0.00020821,2]
[358519538,1745229046289,-500.0,0.00020821,2]
[358519540,1745229046299,-500.0,0.00020821,2]
[358519542,1745229046310,-500.0,0.00020821,2]
[358519544,1745229046321,-500.0,0.00020821,2]
[358519546,1745229046331,-500.0,0.00020821,2]
[358519548,1745229046339,-500.0,0.00020821,2]
[358519550,1745229046349,-685.03,0.00020821,2]
[358519552,1745229046359,-2451.89,0.00020821,2]
[358519554,1745229046368,-1056.22,0.00020821,2]
[358519556,1745229046377,-1445.44,0.00020821,2]
[358519558,1745229046387,-500.0,0.00020821,2]
[358519560,1745229046397,-500.0,0.00020821,2]
[358519562,1745229046407,-500.0,0.00020821,2]
[358519564,1745229046416,-500.0,0.00020821,2]
[358519566,1745229046426,-545.59,0.00020821,2]
[358519568,1745229046437,-837.36,0.00020821,2]
[358519571,1745229046449,-500.0,0.00020821,2]
[358519573,1745229046458,-500.0,0.00020821,2]
[358519575,1745229046468,-500.0,0.00020821,2]
[358519577,1745229046478,-500.0,0.00020821,2]
[358519579,1745229046487,-500.0,0.00020821,2]
[358519581,1745229046497,-500.0,0.00020821,2]
[358519583,1745229046506,-987.22,0.00020821,2]
[358519585,1745229046515,-1671.49,0.00020821,2]
[358519587,1745229046524,-1206.58,0.00020821,2]
[358519588,1745229046533,-500.0,0.00020821,2]
[358519590,1745229046542,-500.0,0.00020821,2]
[358519592,1745229046551,-554.65924695,0.00020821,2]
[358519593,1745229046561,-6140.27,0.00020821,2]
[358519595,1745229046571,-500.0,0.00020821,2]
[358519597,1745229046580,-500.0,0.00020821,2]
[358519599,1745229046590,-500.0,0.00020821,2]
[358519600,1745229046599,-7197.86,0.00020821,2]
[358519602,1745229046608,-500.0,0.00020821,2]
[358519604,1745229046618,-500.0,0.00020821,2]
[358519606,1745229046627,-450.19254819,0.00020821,2]
[358519607,1745229046637,-1235.18,0.00020821,2]
[358519609,1745229046646,-2946.16,0.00020821,2]
[358519611,1745229046656,-1070.22,0.00020821,2]
[358519612,1745229046665,-500.0,0.00020821,2]
[358519614,1745229046676,-500.0,0.00020821,2]
[358519616,1745229046685,-631.87,0.00020821,2]
[358519618,1745229046694,-500.0,0.00020821,2]
[358519620,1745229046705,-928.78750297,0.00020832,2]
[358519621,1745229046714,-500.0,0.00020836,2]
[358519623,1745229046724,-500.0,0.00020887,2]
[358519625,1745229046733,-157.53,0.00021,2]
[358519627,1745229046743,-500.0,0.00021028,2]
[358519628,1745229046752,-500.0,0.00021041,2]
[358519630,1745229046763,-500.0,0.00021048,2]
[358519632,1745229046772,-500.0,0.00021069,2]
[358519634,1745229046781,-500.0,0.00021095,2]
[358519635,1745229046791,-1494.8,0.00021095,2]
[358519637,1745229046800,-500.0,0.00021095,2]
[358519639,1745229046811,-500.0,0.00021095,2]
[358519640,1745229046825,-500.0,0.00021095,2]
[358519642,1745229046835,-500.0,0.00021095,2]
[358519644,1745229046844,-500.0,0.00021095,2]
[358519646,1745229046853,-500.0,0.00021095,2]
[358519647,1745229046862,-543.66,0.00021095,2]
[358519649,1745229046872,-500.0,0.00021095,2]
[358519651,1745229046881,-500.0,0.00021095,2]
[358519653,1745229046891,-500.0,0.00021095,2]
[358519654,1745229046900,-500.0,0.00021095,2]
[358519656,1745229046909,-500.0,0.00021095,2]
[358519658,1745229046919,-500.0,0.00021095,2]
[358519660,1745229046928,-685.03,0.00021095,2]
[358519662,1745229046937,-2451.89,0.00021095,2]
[358519664,1745229046947,-1056.22,0.00021095,2]
[358519665,1745229046956,-1445.44,0.00021095,2]
[358519667,1745229046965,-500.0,0.00021095,2]
[358519669,1745229046975,-500.0,0.00021095,2]
[358519671,1745229046984,-500.0,0.00021095,2]
[358519673,1745229046994,-500.0,0.00021095,2]
[358519674,1745229047004,-545.59,0.00021095,2]
[358519676,1745229047013,-837.36,0.00021095,2]
[358519678,1745229047022,-500.0,0.00021095,2]
[358519680,1745229047032,-500.0,0.00021095,2]
[358519682,1745229047041,-500.0,0.00021095,2]
[358519683,1745229047050,-500.0,0.00021095,2]
[358519685,1745229047059,-500.0,0.00021095,2]
[358519687,1745229047068,-500.0,0.00021095,2]
[358519689,1745229047079,-987.22,0.00021095,2]
[358519691,1745229047089,-1671.49,0.00021095,2]
[358519693,1745229047099,-1206.58,0.00021095,2]
[358519695,1745229047108,-500.0,0.00021095,2]
[358519697,1745229047118,-500.0,0.00021095,2]
[358519699,1745229047132,-6140.27,0.00021095,2]
[358519701,1745229047142,-500.0,0.00021095,2]
[358519703,1745229047152,-500.0,0.00021095,2]
[358519704,1745229047162,-500.0,0.00021095,2]
[358519706,1745229047171,-7197.86,0.00021095,2]
[358519708,1745229047180,-500.0,0.00021095,2]
[358519710,1745229047190,-500.0,0.00021095,2]
[358519712,1745229047200,-1235.18,0.00021095,2]
[358519713,1745229047209,-1070.22,0.00021095,2]
[358519715,1745229047219,-2946.16,0.00021095,2]
[358519717,1745229047229,-500.0,0.00021095,2]
[358519719,1745229047239,-500.0,0.00021095,2]
[358519721,1745229047248,-631.87,0.00021095,2]
[358519723,1745229047259,-500.0,0.00021095,2]
[358519725,1745229047268,-500.0,0.00021115,2]
[358519727,1745229047278,-600.0,0.00021116,2]
[358519728,1745229047287,-23089.56285124,0.00021155,2]
[358519730,1745229047297,-500.0,0.00021258,2]
[358519732,1745229047308,-2250.3606725,0.00021262,2]
[358519734,1745229047319,-200.0,0.000213,2]
[358519736,1745229047329,-151.0,0.00021358,2]
[358519738,1745229047338,-500.0,0.0002136,2]
[358519739,1745229047347,-500.0,0.00021369,2]
[358519741,1745229047358,-1494.8,0.00021369,2]
[358519743,1745229047367,-500.0,0.00021369,2]
[358519745,1745229047377,-500.0,0.00021369,2]
[358519747,1745229047387,-500.0,0.00021369,2]
[358519749,1745229047395,-500.0,0.00021369,2]
[358519750,1745229047405,-500.0,0.00021369,2]
[358519752,1745229047414,-500.0,0.00021369,2]
[358519754,1745229047424,-543.66,0.00021369,2]
[358519756,1745229047433,-500.0,0.00021369,2]
[358519758,1745229047442,-500.0,0.00021369,2]
[358519760,1745229047452,-500.0,0.00021369,2]
[358519761,1745229047461,-500.0,0.00021369,2]
[358519763,1745229047470,-500.0,0.00021369,2]
[358519765,1745229047481,-500.0,0.00021369,2]
[358519767,1745229047490,-685.03,0.00021369,2]
[358519769,1745229047499,-2451.89,0.00021369,2]
[358519771,1745229047509,-1056.22,0.00021369,2]
[358519773,1745229047521,-1445.44,0.00021369,2]
[358519774,1745229047530,-500.0,0.00021369,2]
[358519776,1745229047541,-500.0,0.00021369,2]
[358519779,1745229047550,-500.0,0.00021369,2]
[358519781,1745229047561,-500.0,0.00021369,2]
[358519783,1745229047570,-545.59,0.00021369,2]
[358519785,1745229047579,-837.36,0.00021369,2]
[358519787,1745229047589,-514.84836878,0.00021369,2]
[358519789,1745229047598,-500.0,0.00021369,2]
[358519791,1745229047608,-500.0,0.00021369,2]
[358519793,1745229047618,-500.0,0.00021369,2]
[358519795,1745229047627,-500.0,0.00021369,2]
[358519797,1745229047637,-987.22,0.00021369,2]
[358519799,1745229047647,-1671.49,0.00021369,2]
[358519801,1745229047657,-1206.58,0.00021369,2]
[358519803,1745229047667,-500.0,0.00021369,2]
[358519804,1745229047677,-500.0,0.00021369,2]
[358519805,1745229047687,-6140.27,0.00021369,2]
[358519806,1745229047696,-500.0,0.00021369,2]
[358519807,1745229047706,-500.0,0.00021369,2]
[358519808,1745229047716,-500.0,0.00021369,2]
[358519809,1745229047727,-7197.86,0.00021369,2]
[358519810,1745229047737,-500.0,0.00021369,2]
[358519811,1745229047747,-500.0,0.00021369,2]
[358519812,1745229047758,-1235.18,0.00021369,2]
[358519813,1745229047768,-1070.22,0.00021369,2]
[358519814,1745229047778,-2946.16,0.00021369,2]
[358519815,1745229047789,-500.0,0.00021369,2]
[358519816,1745229047800,-500.0,0.00021369,2]
[358519817,1745229047810,-631.87,0.00021369,2]
[358519818,1745229047820,-500.0,0.00021369,2]
[358519820,1745229047830,-500.0,0.00021492,2]
[358519821,1745229047840,-160.0,0.00021508,3]
[358519823,1745229047850,-500.0,0.00021643,2]
[358519825,1745229047859,-1494.8,0.00021643,2]
[358519827,1745229047869,-500.0,0.00021643,2]
[358519829,1745229047879,-500.0,0.00021643,2]
[358519831,1745229047888,-500.0,0.00021643,2]
[358519833,1745229047898,-500.0,0.00021643,2]
[358519835,1745229047907,-500.0,0.00021643,2]
[358519837,1745229047918,-500.0,0.00021643,2]
[358519839,1745229047927,-543.66,0.00021643,2]
[358519841,1745229047937,-500.0,0.00021643,2]
[358519843,1745229047947,-500.0,0.00021643,2]
[358519845,1745229047957,-256.72781733,0.00021643,2]
[358519847,1745229047969,-500.0,0.00021643,2]
[358519850,1745229047980,-500.0,0.00021643,2]
[358519852,1745229047990,-500.0,0.00021643,2]
[358519854,1745229048000,-685.03,0.00021643,2]
[358519856,1745229048010,-2451.89,0.00021643,2]
[358519858,1745229048019,-1056.22,0.00021643,2]
[358519860,1745229048029,-1445.44,0.00021643,2]
[358519862,1745229048039,-500.0,0.00021643,2]
[358519864,1745229048048,-500.0,0.00021643,2]
[358519866,1745229048058,-500.0,0.00021643,2]
[358519868,1745229048068,-500.0,0.00021643,2]
[358519870,1745229048077,-545.59,0.00021643,2]
[358519872,1745229048087,-837.36,0.00021643,2]
[358519874,1745229048097,-500.0,0.00021643,2]
[358519876,1745229048106,-500.0,0.00021643,2]
[358519878,1745229048115,-500.0,0.00021643,2]
[358519880,1745229048124,-500.0,0.00021643,2]
[358519882,1745229048134,-987.22,0.00021643,2]
[358519884,1745229048144,-1671.49,0.00021643,2]
[358519886,1745229048153,-1206.58,0.00021643,2]
[358519888,1745229048163,-500.0,0.00021643,2]
[358519890,1745229048173,-500.0,0.00021643,2]
[358519892,1745229048183,-6140.27,0.00021643,2]
[358519894,1745229048193,-500.0,0.00021643,2]
[358519896,1745229048203,-590.8941225,0.00021643,2]
[358519898,1745229048212,-500.0,0.00021643,2]
[358519900,1745229048222,-7197.86,0.00021643,2]
[358519902,1745229048233,-500.0,0.00021643,2]
[358519904,1745229048243,-500.0,0.00021643,2]
[358519906,1745229048253,-1235.18,0.00021643,2]
[358519908,1745229048263,-1070.22,0.00021643,2]
[358519911,1745229048274,-2946.16,0.00021643,2]
[358519913,1745229048284,-500.0,0.00021643,2]
[358519915,1745229048293,-500.0,0.00021643,2]
[358519917,1745229048303,-631.87,0.00021643,2]
[358519919,1745229048315,-500.0,0.00021643,2]
[358519921,1745229048324,-500.0,0.00021673,2]
[358519923,1745229048334,-628.82734016,0.00021673,2]
[358519925,1745229048344,-262.88102442,0.00021673,2]
[358519927,1745229048354,-500.0,0.00021673,2]
[358519929,1745229048364,-394.34615448,0.00021673,2]
[358519931,1745229048374,-500.85167952,0.00021673,2]
[358519933,1745229048385,-500.0,0.00021673,2]
[358519935,1745229048395,-500.0,0.00021673,2]
[358519937,1745229048405,-500.0,0.00021673,2]
[358519939,1745229048415,-500.0,0.00021673,2]
[358519941,1745229048424,-500.0,0.00021673,2]
[358519943,1745229048434,-504.94960693,0.00021673,2]
[358519945,1745229048444,-500.90110145,0.00021673,2]
[358519947,1745229048453,-500.0,0.00021673,2]
[358519949,1745229048463,-500.0,0.00021673,2]
[358519951,1745229048473,-500.0,0.00021673,2]
[358519954,1745229048484,-12568.0511546,0.00021693,3]
[358519955,1745229048494,-160.0,0.00021693,3]
[358519958,1745229048504,-160.0,0.00021693,3]
[358519960,1745229048514,-9204.46531791,0.00021693,3]
[358519962,1745229048524,-729.16666667,0.00021693,3]
[358519964,1745229048533,-160.0,0.00021693,3]
[358519966,1745229048543,-587.0,0.00021722,2]
[358519968,1745229048553,-500.0,0.00021802,2]
[358519970,1745229048562,-160.0,0.00021824,4]
[358519972,1745229048572,-6000.0,0.000219,2]
[358519974,1745229048582,-500.0,0.00021901,2]
[358519976,1745229048592,-151.0,0.00021906,2]
[358519993,1745229048738,-11802.18090277,0.00021914,2]
[358519995,1745229048749,-500.0,0.00021917,2]
[358519997,1745229048759,-500.0,0.00021917,2]
[358519999,1745229048770,-500.0,0.00021917,2]
[358520001,1745229048780,-500.0,0.00021917,2]
[358520003,1745229048790,-500.0,0.00021917,2]
[358520005,1745229048800,-500.0,0.00021917,2]
[358520007,1745229048809,-500.0,0.00021917,2]
[358520009,1745229048819,-500.0,0.00021917,2]
[358520011,1745229048828,-296.21606701,0.00021917,2]
[358520013,1745229048838,-500.0,0.00021917,2]
[358520015,1745229048847,-1494.8,0.00021917,2]
[358520017,1745229048857,-500.0,0.00021917,2]
[358520019,1745229048867,-500.0,0.00021917,2]
[358520021,1745229048877,-160.0,0.00021917,2]
[358520023,1745229048886,-500.0,0.00021917,2]
[358520025,1745229048896,-500.0,0.00021917,2]
[358520027,1745229048906,-500.0,0.00021917,2]
[358520030,1745229048917,-500.0,0.00021917,2]
[358520032,1745229048927,-543.66,0.00021917,2]
[358520034,1745229048936,-500.0,0.00021917,2]
[358520035,1745229048946,-500.0,0.00021917,2]
[358520037,1745229048956,-500.0,0.00021917,2]
[358520039,1745229048966,-500.0,0.00021917,2]
[358520041,1745229048976,-500.0,0.00021917,2]
[358520043,1745229048986,-600.38719613,0.00021917,2]
[358520046,1745229048996,-500.0,0.00021917,2]
[358520048,1745229049006,-500.0,0.00021917,2]
[358520050,1745229049015,-500.0,0.00021917,2]
[358520052,1745229049025,-685.03,0.00021917,2]
[358520054,1745229049035,-2451.89,0.00021917,2]
[358520056,1745229049045,-500.0,0.00021917,2]